lending/lending_fUSD_20260102
["ID","MTS","AMOUNT","RATE_DAILY","PERIOD"]
[400319797,1767366220572,705.64,8.42e-05,2]
[400319798,1767366220804,705.64,8.803e-05,2]
[400319799,1767366221007,705.64,9.186e-05,2]
[400319800,1767366221210,705.64,9.568e-05,2]
[400319801,1767366221407,705.64,9.951e-05,2]
[400319802,1767366221606,705.64,0.00010334,2]
[400319803,1767366221801,705.64,0.00010717,2]
[400319807,1767366397156,-705.64,0.00011099,2]
[400319808,1767366397181,-23.97925945,0.00011482,2]
[400319809,1767366546093,-681.66074055,0.00011482,2]
[400319810,1767366546116,-390.02316812,0.00011865,2]
[400319815,1767366632223,-315.61683188,0.00011865,2]
[400319817,1767366632233,-658.56201656,0.00012248,2]
[400319819,1767366632245,-47.07798344,0.00012248,2]
[400319820,1767366632254,-705.64,0.0001263,2]
[400319821,1767366632264,-250.0,0.0001263,2]
[400319822,1767366632274,-250.0,0.0001263,2]
[400319823,1767366632284,-387.87855111,0.00013013,2]
[400319824,1767366632296,-317.76144889,0.00013013,2]
[400319825,1767366632306,-250.0,0.00013051,2]
[400319826,1767366632318,-12.59916544,0.00013395,2]
[400319827,1767366632330,-1144.96358765,0.00013395,2]
[400319828,1767366632342,-42.43724691,0.00013395,2]
[400319829,1767366632352,-705.64,0.00013396,2]
[400319830,1767366632361,-485.76,0.00013699,2]
[400319831,1767366632371,-234.83331387,0.00013753,2]
[400319832,1767366632383,-88.58668613,0.00013753,2]
[400319833,1767366632393,-705.64,0.00013779,2]
[400319834,1767366632403,-73.06796722,0.00013909,2]
[400319835,1767366632414,-587.11203278,0.00013909,2]
[400319836,1767366632424,-300.0,0.00013944,2]
[400319837,1767366632433,-1186.18386398,0.00013946,2]
[400319838,1767366632471,-1470.94613602,0.00013946,2]
[400319839,1767366632482,-165.03,0.00013998,2]
[400319840,1767366632491,-3452.365859,0.0001409,2]
[400319841,1767366632501,-705.64,0.00014161,2]
[400319842,1767366632511,-166.41,0.00014289,2]
[400319843,1767366632520,-705.64,0.00014544,2]
[400319844,1767366632531,-660.18,0.00014605,2]
[400319845,1767366632541,-246.37,0.00014674,2]
[400319846,1767366632550,-1680.0,0.00014734,2]
[400319847,1767366632560,-500.0,0.00014773,2]
[400319848,1767366632569,-649.80211878,0.00014773,2]
[400319849,1767366632581,-500.0,0.00014773,2]
[400319850,1767366632591,-165.03,0.00014998,2]
[400319851,1767366632600,-15836.69118715,0.00015016,2]
[400319852,1767366632612,-18133.60899705,0.00015016,2]
[400319853,1767366632623,-103212.53733288,0.00015016,2]
[400319854,1767366632634,-756.71092669,0.00015016,2]
[400319855,1767366632646,-4806.29998,0.00015016,2]
[400319856,1767366632657,-339.75260614,0.00015016,2]
[400319857,1767366632669,-15449.96420356,0.00015016,2]
[400319858,1767366632682,-473.32,0.00015016,2]
[400319934,1767366638622,-744.62856564,0.00015016,2]
[400319935,1767366638636,-1766.64048078,0.00015016,2]
[400319936,1767366638648,-6721.28896043,0.00015016,2]
[400319937,1767366638662,-5178.12631432,0.00015016,2]
[400319938,1767366638676,-13632.48890648,0.00015016,2]
[400319939,1767366638688,-110056.7191208,0.00015016,2]
[400319940,1767366638701,-307.38510416,0.00015016,2]
[400319941,1767366638714,-3775.83326144,0.00015016,2]
[400319942,1767366638726,-1544.58384795,0.00015016,2]
[400319943,1767366638760,-1377.07327054,0.00015016,2]
[400319944,1767366638772,-498.98998669,0.00015016,2]
[400319945,1767366638822,-675.01067611,0.00015016,2]
[400319946,1767366638834,-666.24,0.00015016,2]
[400319947,1767366638846,-62380.68402102,0.00015016,2]
[400319948,1767366638883,-21353.76411447,0.00015016,2]
[400319949,1767366638897,-2455.6309863,0.00015016,2]
[400319950,1767366638909,-10115.66751706,0.00015016,2]
[400319951,1767366638950,-631.32,0.00015016,2]
[400319952,1767366638963,-7942.50148664,0.00015016,2]
[400319953,1767366638998,-2437.99103874,0.00015016,2]
[400319954,1767366639011,-1887.99999,0.00015016,2]
[400319955,1767366639024,-1046.26,0.00015016,2]
[400319956,1767366639040,-7167.08885631,0.00015016,2]
[400319957,1767366639054,-2209.98352126,0.00015016,2]
[400319958,1767366639068,-474.71000045,0.00015016,2]
[400319973,1767366641848,-166.80790393,0.0001494,2]
[400319974,1767366641859,-4263.36180392,0.00015016,2]
[400319975,1767366642726,-250.411208,0.00015016,2]
[400319976,1767366642783,-569428.73172702,0.00015016,2]
[400319977,1767366642815,-500.0,0.0001504,2]
[400319978,1767366642826,-500.0,0.0001504,2]
[400319979,1767366642841,-500.0,0.0001504,2]
[400319980,1767366642853,-532.7014,0.00015115,2]
[400319981,1767366642865,-6838.86815217,0.00015116,2]
[400319982,1767366642884,-286.04323352,0.00015116,2]
[400319983,1767366642899,-300.0,0.00015116,2]
[400319984,1767366642914,-152.25403322,0.00015116,2]
[400319985,1767366642926,-4525.12249491,0.00015116,2]
[400319986,1767366642937,-9438.02217673,0.00015204,2]
[400319987,1767366642952,-151.0,0.00015206,2]
[400319988,1767366642966,-151.0,0.00015206,2]
[400319989,1767366642981,-151.0,0.00015206,2]
[400319990,1767366642993,-151.0,0.00015206,2]
[400319991,1767366643005,-168.3888056,0.00015206,2]
[400319992,1767366643018,-153.70166196,0.00015206,2]
[400319993,1767366643037,-151.0,0.00015206,2]
[400319994,1767366643077,-151.0,0.00015206,2]
[400319995,1767366643108,-151.0,0.00015206,2]
[400319996,1767366643129,-151.0,0.00015206,2]
[400319997,1767366643142,-200.01807784,0.00015206,2]
[400319998,1767366643159,-200.0,0.00015206,2]
[400319999,1767366643171,-200.0,0.00015206,2]
[400320000,1767366643188,-185.867,0.00015213,2]
[400320001,1767366643200,-151.098,0.00015213,2]
[400320002,1767366643217,-300.50517037,0.00015214,2]
[400320003,1767366643229,-500.0,0.00015214,2]
[400320004,1767366643257,-500.0,0.00015214,2]
[400320005,1767366643285,-500.0,0.00015214,2]
[400320006,1767366643298,-500.0,0.00015214,2]
[400320007,1767366643329,-500.0,0.00015214,2]
[400320008,1767366643361,-500.0,0.00015214,2]
[400320009,1767366643372,-500.0,0.00015214,2]
[400320010,1767366643388,-500.0,0.00015214,2]
[400320011,1767366643400,-500.0,0.00015214,2]
[400320012,1767366643423,-500.0,0.00015214,2]
[400320013,1767366643435,-500.0,0.00015214,2]
[400320014,1767366643447,-500.0,0.00015214,2]
[400320015,1767366643457,-500.0,0.00015214,2]
[400320016,1767366643468,-500.0,0.00015214,2]
[400320018,1767366643480,-500.0,0.00015214,2]
[400320020,1767366643496,-500.0,0.00015214,2]
[400320022,1767366643506,-500.0,0.00015214,2]
[400320023,1767366643523,-500.0,0.00015214,2]
[400320024,1767366643539,-500.0,0.00015214,2]
[400320025,1767366643551,-500.0,0.00015214,2]
[400320026,1767366643564,-500.0,0.00015214,2]
[400320027,1767366643577,-500.0,0.00015214,2]
[400320028,1767366643594,-500.0,0.00015214,2]
[400320029,1767366643607,-500.0,0.00015214,2]
[400320030,1767366643618,-500.0,0.00015214,2]
[400320032,1767366643633,-500.0,0.00015214,2]
[400320035,1767366643646,-500.0,0.00015214,2]
[400320036,1767366643666,-500.0,0.00015214,2]
[400320037,1767366643677,-500.0,0.00015214,2]
[400320039,1767366643698,-500.0,0.00015214,2]
[400320040,1767366643723,-500.0,0.00015214,2]
[400320041,1767366643738,-500.0,0.00015214,2]
[400320042,1767366643752,-500.0,0.00015214,2]
[400320043,1767366643764,-500.0,0.00015214,2]
[400320044,1767366643776,-500.0,0.00015214,2]
[400320045,1767366643793,-500.0,0.00015214,2]
[400320046,1767366643804,-500.0,0.00015214,2]
[400320047,1767366643816,-500.0,0.00015214,2]
[400320048,1767366643829,-500.0,0.00015214,2]
[400320049,1767366643840,-500.0,0.00015214,2]
[400320050,1767366643851,-500.0,0.00015214,2]
[400320051,1767366643865,-500.0,0.00015214,2]
[400320052,1767366643876,-500.0,0.00015214,2]
[400320053,1767366643888,-500.0,0.00015214,2]
[400320054,1767366643900,-500.0,0.00015214,2]
[400320055,1767366643911,-213.03255031,0.00015214,2]
[400320056,1767366643925,-200.5323999,0.00015214,2]
[400320057,1767366643936,-500.0,0.00015214,2]
[400320058,1767366643947,-500.0,0.00015214,2]
[400320059,1767366643959,-338.07251147,0.00015214,2]
[400320060,1767366643975,-500.0,0.00015214,2]
[400320061,1767366643986,-500.0,0.00015214,2]
[400320062,1767366643998,-500.0,0.00015214,2]
[400320063,1767366644010,-500.0,0.00015214,2]
[400320064,1767366644021,-500.0,0.00015214,2]
[400320065,1767366644039,-500.0,0.00015214,2]
[400320066,1767366644050,-500.0,0.00015214,2]
[400320067,1767366644061,-500.0,0.00015214,2]
[400320068,1767366644072,-500.0,0.00015214,2]
[400320069,1767366644082,-500.0,0.00015214,2]
[400320070,1767366644093,-500.0,0.00015214,2]
[400320071,1767366644104,-500.0,0.00015214,2]
[400320072,1767366644114,-500.0,0.00015214,2]
[400320073,1767366644126,-500.0,0.00015214,2]
[400320074,1767366644136,-500.0,0.00015214,2]
[400320075,1767366644147,-500.0,0.00015214,2]
[400320076,1767366644158,-527.8384071,0.00015214,2]
[400320077,1767366644169,-500.0,0.00015214,2]
[400320078,1767366644180,-500.0,0.00015214,2]
[400320079,1767366644191,-313.1513291,0.00015214,2]
[400320080,1767366644202,-499.99999999,0.00015214,2]
[400320081,1767366644213,-500.0,0.00015214,2]
[400320082,1767366644224,-500.0,0.00015214,2]
[400320083,1767366644235,-578.28204782,0.00015214,2]
[400320084,1767366644246,-500.0,0.00015214,2]
[400320085,1767366644256,-500.0,0.00015214,2]
[400320086,1767366644267,-500.0,0.00015214,2]
[400320087,1767366644278,-502.46263758,0.00015214,2]
[400320088,1767366644292,-500.0,0.00015214,2]
[400320089,1767366644302,-500.0,0.00015214,2]
[400320090,1767366644315,-500.0,0.00015214,2]
[400320091,1767366644329,-500.0,0.00015214,2]
[400320092,1767366644340,-500.0,0.00015214,2]
[400320093,1767366644351,-500.0,0.00015214,2]
[400320094,1767366644361,-500.0,0.00015214,2]
[400320095,1767366644373,-500.0,0.00015214,2]
[400320096,1767366644383,-500.0,0.00015214,2]
[400320097,1767366644393,-500.0,0.00015214,2]
[400320098,1767366644404,-500.0,0.00015214,2]
[400320099,1767366644417,-500.0,0.00015214,2]
[400320100,1767366644427,-500.0,0.00015214,2]
[400320101,1767366644439,-500.0,0.00015214,2]
[400320102,1767366644449,-500.0,0.00015214,2]
[400320103,1767366644461,-522.96995118,0.00015214,2]
[400320104,1767366644472,-500.0,0.00015214,2]
[400320105,1767366644483,-500.0,0.00015214,2]
[400320106,1767366644494,-500.0,0.00015214,2]
[400320107,1767366644504,-1406.64,0.00015214,2]
[400320108,1767366644514,-151.0,0.00015214,2]
[400320109,1767366644524,-359.60319035,0.00015214,2]
[400320110,1767366644536,-500.0,0.00015214,2]
[400320111,1767366644547,-500.0,0.00015214,2]
[400320112,1767366644557,-500.0,0.00015214,2]
[400320113,1767366644569,-500.0,0.00015214,2]
[400320114,1767366644580,-2500.0,0.00015215,2]
[400320115,1767366644591,-1000.0,0.00015216,2]
[400320116,1767366644601,-10669.3851462,0.00015269,2]
[400320117,1767366644612,-1007.265468,0.00015269,2]
[400320118,1767366644622,-420.0,0.00015277,2]
[400320119,1767366644632,-660.18,0.000153,2]
[400320120,1767366644642,-500.0,0.00015315,2]
[400320121,1767366644654,-500.0,0.00015315,2]
[400320122,1767366644665,-500.0,0.00015315,2]
[400320123,1767366644675,-500.0,0.00015315,2]
[400320124,1767366644686,-500.0,0.00015315,2]
[400320125,1767366644696,-500.0,0.00015315,2]
[400320126,1767366644707,-500.0,0.00015315,2]
[400320127,1767366644717,-500.0,0.00015315,2]
[400320128,1767366644727,-500.0,0.00015315,2]
[400320129,1767366644738,-500.0,0.00015315,2]
[400320130,1767366644748,-500.0,0.00015315,2]
[400320131,1767366644759,-500.0,0.00015315,2]
[400320132,1767366644769,-500.0,0.00015315,2]
[400320133,1767366644779,-500.0,0.00015315,2]
[400320134,1767366644794,-500.0,0.00015315,2]
[400320135,1767366644805,-500.0,0.00015315,2]
[400320136,1767366644816,-500.0,0.00015315,2]
[400320137,1767366644826,-500.0,0.00015315,2]
[400320138,1767366644836,-500.0,0.00015315,2]
[400320139,1767366644846,-500.0,0.00015315,2]
[400320140,1767366644857,-500.0,0.00015315,2]
[400320141,1767366644868,-506.34489947,0.00015315,2]
[400320142,1767366644878,-500.0,0.00015315,2]
[400320143,1767366644889,-500.0,0.00015315,2]
[400320144,1767366644899,-361.82992148,0.00015315,2]
[400320145,1767366645130,-250.0,0.00015348,2]
[400320146,1767366645141,-166.66,0.0001535,2]
[400320147,1767366645152,-640.0,0.00015351,2]
[400320148,1767366645162,-4475.9752,0.0001537,2]
[400320149,1767366645171,-832.0,0.000154,2]
[400320150,1767366645181,-679.0,0.000154,2]
[400320151,1767366645193,-1406.64,0.00015488,2]
[400320152,1767366645203,-150.0,0.00015608,2]
[400320153,1767366645214,-500.0,0.00015608,2]
[400320154,1767366645224,-200.0,0.00015608,2]
[400320155,1767366645235,-217.34038577,0.00015608,2]
[400320156,1767366645246,-151.0,0.00015609,2]
[400320157,1767366645256,-151.0,0.00015647,2]
[400320158,1767366645267,-2322.48,0.0001566,2]
[400320159,1767366645278,-166.66,0.0001566,2]
[400320160,1767366645291,-151.0,0.00015664,2]
[400320161,1767366645302,-151.0,0.00015664,2]
[400320162,1767366645312,-150.0,0.00015716,2]
[400320163,1767366645326,-150.0,0.00015716,2]
[400320164,1767366645336,-1153.0,0.00015716,2]
[400320165,1767366645347,-150.0,0.00015716,2]
[400320166,1767366645358,-150.0,0.00015716,2]
[400320167,1767366645368,-182.39481125,0.00015716,2]
[400320168,1767366645378,-199.0,0.00015745,2]
[400320169,1767366645388,-500.0,0.00015745,2]
[400320170,1767366645400,-174.61919141,0.00015754,2]
[400320171,1767366645411,-1406.64,0.00015762,2]
[400320172,1767366645421,-150.0,0.00015853,2]
[400320173,1767366645432,-1153.0,0.00015853,2]
[400320174,1767366645442,-500.0,0.00015882,2]
[400320175,1767366645452,-166.66,0.00015971,2]
[400320176,1767366645463,-1153.0,0.0001599,2]
[400320177,1767366645474,-273.00036196,0.0001599,2]
[400320178,1767366645484,-660.18,0.00015996,2]
[400320179,1767366645494,-165.03,0.00015998,2]
[400320180,1767366645506,-22609.87177808,0.00016,2]
[400320181,1767366645518,-910.12233223,0.00016,2]
[400320182,1767366645529,-200.0,0.00016,2]
[400320183,1767366645542,-500.0,0.00016019,2]
[400320185,1767366645552,-1406.64,0.00016036,2]
[400320187,1767366645562,-1153.0,0.00016127,2]
[400320189,1767366645573,-500.0,0.00016156,2]
[400320191,1767366645583,-200.0,0.0001616,2]
[400320193,1767366645593,-152.25403322,0.00016178,2]
[400320195,1767366645603,-2351.0,0.00016208,2]
[400320196,1767366645613,-510.0,0.00016235,2]
[400320197,1767366645625,-1153.0,0.00016264,2]
[400320198,1767366645634,-166.66,0.00016281,2]
[400320199,1767366645644,-500.0,0.00016293,2]
[400320200,1767366645655,-181.08010149,0.00016302,2]
[400320201,1767366645665,-1406.64,0.0001631,2]
[400320202,1767366645675,-200.0,0.00016322,2]
[400320203,1767366645686,-832.0,0.0001636,2]
[400320204,1767366645696,-1153.0,0.00016401,2]
[400320205,1767366645706,-999.0,0.00016404,3]
[400320206,1767366645716,-500.0,0.0001643,2]
[400320207,1767366645727,-500.0,0.00016438,2]
[400320208,1767366645737,-500.0,0.00016438,2]
[400320209,1767366645747,-502.8378434,0.00016438,2]
[400320210,1767366645757,-500.0,0.00016438,2]
[400320211,1767366645767,-500.0,0.00016438,2]
[400320212,1767366645778,-500.0,0.00016438,2]
[400320213,1767366645792,-500.0,0.00016438,2]
[400320214,1767366645802,-500.0,0.00016438,2]
[400320215,1767366645811,-500.0,0.00016438,2]
[400320216,1767366645821,-500.0,0.00016438,2]
[400320217,1767366645831,-500.0,0.00016438,2]
[400320218,1767366645842,-500.0,0.00016438,2]
[400320219,1767366645852,-500.0,0.00016438,2]
[400320220,1767366645862,-500.0,0.00016438,2]
[400320221,1767366645873,-500.0,0.00016438,2]
[400320222,1767366645884,-500.0,0.00016438,2]
[400320223,1767366645894,-500.0,0.00016438,2]
[400320224,1767366645904,-500.0,0.00016438,2]
[400320225,1767366645914,-500.0,0.00016438,2]
[400320226,1767366645926,-500.0,0.00016438,2]
[400320227,1767366645940,-500.0,0.00016438,2]
[400320228,1767366645951,-500.0,0.00016438,2]
[400320229,1767366645961,-500.0,0.00016438,2]
[400320230,1767366645970,-500.0,0.00016438,2]
[400320231,1767366645980,-500.0,0.00016438,2]
[400320232,1767366645989,-500.0,0.00016438,2]
[400320233,1767366645998,-500.0,0.00016438,2]
[400320234,1767366646008,-500.0,0.00016438,2]
[400320235,1767366646017,-500.0,0.00016438,2]
[400320236,1767366646026,-500.0,0.00016438,2]
[400320237,1767366646037,-500.0,0.00016438,2]
[400320238,1767366646047,-500.0,0.00016438,2]
[400320239,1767366646056,-500.0,0.00016438,2]
[400320240,1767366646065,-500.0,0.00016438,2]
[400320241,1767366646075,-232.68070159,0.00016438,2]
[400320242,1767366646084,-500.0,0.00016438,2]
[400320243,1767366646094,-500.0,0.00016438,2]
[400320245,1767366646103,-500.0,0.00016438,2]
[400320247,1767366646113,-500.0,0.00016438,2]
[400320248,1767366646122,-500.0,0.00016438,2]
[400320250,1767366646131,-500.0,0.00016438,2]
[400320251,1767366646141,-250.0,0.00016438,2]
[400320252,1767366646150,-500.0,0.00016438,2]
[400320253,1767366646160,-4561.34,0.00016438,2]
[400320254,1767366646170,-763.0,0.00016438,2]
[400320255,1767366646180,-164.68,0.0001644,2]
[400320256,1767366646189,-200.0,0.00016485,2]
[400320257,1767366646199,-1153.0,0.00016538,2]
[400320258,1767366646208,-565.53410059,0.00016567,2]
[400320259,1767366646218,-1406.64,0.00016584,2]
[400320260,1767366646228,-200.0,0.0001665,2]
[400320261,1767366646237,-1153.0,0.00016675,2]
[400320262,1767366646246,-4598.14459949,0.00016683,2]
[400320263,1767366646257,-660.18,0.00016691,2]
[400320264,1767366646266,-165.69,0.00016712,2]
[400320265,1767366646275,-587.0,0.00016738,2]
[400320266,1767366646285,-211.91,0.00016775,2]
[400320267,1767366646295,-1153.0,0.00016812,2]
[400320268,1767366646304,-187.78006525,0.0001685,2]
[400320269,1767366646313,-1406.64,0.00016858,2]
[400320270,1767366646328,-1153.0,0.00016949,2]
[400320272,1767366646338,-500.0,0.00016973,2]
[400320273,1767366646347,-335.21066811,0.00016973,2]
[400320275,1767366646356,-500.0,0.00016973,2]
[400320276,1767366646365,-500.0,0.00016973,2]
[400320277,1767366646375,-464.73084139,0.00016973,2]
[400320278,1767366646384,-500.0,0.00016973,2]
[400320279,1767366646393,-165.03,0.00016998,2]
[400320280,1767366646403,-500.0,0.00016999,2]
[400320281,1767366646414,-500.0,0.00016999,2]
[400320282,1767366646423,-509.38793221,0.00016999,2]
[400320283,1767366646434,-161.81,0.00017,2]
[400320284,1767366646444,-183209.76650224,0.00017,2]
[400320285,1767366646454,-250.0,0.00017,2]
[400320286,1767366646464,-151.748266,0.00017,2]
[400320287,1767366646474,-682.422326,0.00017,2]
[400320288,1767366646484,-682.422326,0.00017,2]
[400320289,1767366646493,-682.422326,0.00017,2]
[400320290,1767366646502,-682.422326,0.00017,2]
[400320291,1767366646512,-437.482557,0.00017,2]
[400320292,1767366646521,-437.482557,0.00017,2]
[400320293,1767366646531,-437.482557,0.00017,2]
[400320294,1767366646542,-437.482557,0.00017,2]
[400320295,1767366646552,-151.0,0.00017,2]
[400320296,1767366646562,-151.0,0.00017,2]
[400320297,1767366646571,-151.0,0.00017,2]
[400320298,1767366646580,-347.295261,0.00017,2]
[400320299,1767366646589,-347.295261,0.00017,2]
[400320300,1767366646598,-347.295261,0.00017,2]
[400320301,1767366646607,-347.295261,0.00017,2]
[400320302,1767366646616,-272.996241,0.00017,2]
[400320303,1767366646625,-272.996241,0.00017,2]
[400320304,1767366646634,-272.996241,0.00017,2]
[400320305,1767366646644,-272.996241,0.00017,2]
[400320306,1767366646653,-1000.0,0.00017042,2]
[400320307,1767366646663,-1153.0,0.00017086,2]
[400320308,1767366646673,-1406.64,0.00017132,2]
[400320309,1767366646684,-1153.0,0.00017223,2]
[400320310,1767366646693,-152.25403322,0.00017239,2]
[400320311,1767366646703,-640.0,0.0001727,2]
[400320312,1767366646712,-152.0,0.00017339,2]
[400320313,1767366646722,-152.0,0.00017339,2]
[400320314,1767366646732,-159.63210293,0.00017339,2]
[400320315,1767366646742,-1258.0,0.00017339,2]
[400320316,1767366646752,-838.0,0.00017339,2]
[400320317,1767366646761,-1258.0,0.00017339,2]
[400320318,1767366646771,-944.07269922,0.00017339,2]
[400320319,1767366646780,-1258.0,0.00017339,2]
[400320320,1767366646791,-1258.0,0.00017339,2]
[400320321,1767366646800,-1258.0,0.00017339,2]
[400320322,1767366646809,-1258.0,0.00017339,2]
[400320323,1767366646818,-151.0,0.00017339,2]
[400320324,1767366646827,-1340.48802844,0.00017339,2]
[400320325,1767366646836,-151.0,0.00017339,2]
[400320326,1767366646845,-151.0,0.00017339,2]
[400320327,1767366646855,-151.0,0.00017339,2]
[400320328,1767366646864,-158.0,0.00017339,2]
[400320329,1767366646876,-151.0,0.00017339,2]
[400320330,1767366646885,-158.0,0.00017339,2]
[400320331,1767366646896,-151.0,0.00017339,2]
[400320332,1767366646908,-158.0,0.00017339,2]
[400320333,1767366646918,-151.0,0.00017339,2]
[400320334,1767366646927,-158.0,0.00017339,2]
[400320335,1767366646937,-151.0,0.00017339,2]
[400320336,1767366646948,-151.0,0.00017339,2]
[400320337,1767366646957,-158.0,0.00017339,2]
[400320338,1767366646966,-151.0,0.00017339,2]
[400320339,1767366646975,-155.91147863,0.00017339,2]
[400320340,1767366646984,-151.0,0.00017339,2]
[400320341,1767366646993,-151.0,0.00017339,2]
[400320342,1767366647003,-151.0,0.00017339,2]
[400320343,1767366647012,-151.0,0.00017339,2]
[400320344,1767366647022,-151.0,0.00017339,2]
[400320345,1767366647030,-151.0,0.00017339,2]
[400320346,1767366647040,-197.61024982,0.00017339,2]
[400320347,1767366647049,-1153.0,0.0001736,2]
[400320348,1767366647059,-177.77293322,0.00017398,2]
[400320349,1767366647069,-1406.64,0.00017405,2]
[400320350,1767366647078,-764.0,0.00017429,2]
[400320351,1767366647087,-1153.0,0.00017497,2]
[400320352,1767366647097,-1000.0,0.00017521,2]
[400320354,1767366647106,-1000.0,0.00017521,2]
[400320356,1767366647115,-500.0,0.00017521,2]
[400320357,1767366647124,-1153.0,0.00017634,2]
[400320358,1767366647133,-1406.64,0.00017679,2]
[400320359,1767366647145,-1153.0,0.00017771,2]
[400320360,1767366647162,-2092.0,0.00017829,2]
[400320361,1767366647171,-281.24652791,0.00017859,2]
[400320362,1767366647180,-1153.0,0.00017908,2]
[400320363,1767366647189,-1406.64,0.00017953,2]
[400320364,1767366647199,-165.03,0.00017998,2]
[400320365,1767366647208,-1199.0,0.0001804,2]
[400320366,1767366647218,-913.0,0.0001804,2]
[400320367,1767366647227,-1153.0,0.00018045,2]
[400320368,1767366647236,-439.65369491,0.00018068,2]
[400320369,1767366647246,-1500.0,0.00018068,2]
[400320370,1767366647256,-1000.0,0.00018082,2]
[400320371,1767366647265,-306.0,0.000181,2]
[400320372,1767366647274,-2433.0,0.00018155,2]
[400320373,1767366647284,-4812.0,0.00018155,2]
[400320374,1767366647294,-6544.0,0.00018155,2]
[400320375,1767366647304,-565.0,0.00018155,2]
[400320376,1767366647313,-1153.0,0.00018182,2]
[400320377,1767366647325,-6838.86815214,0.00018193,2]
[400320378,1767366647336,-4525.12249489,0.00018193,2]
[400320379,1767366647345,-1406.71594667,0.00018227,2]
[400320380,1767366647356,-2380.6616163,0.00018285,2]
[400320381,1767366647366,-1153.0,0.00018319,2]
[400320382,1767366647376,-200.0,0.00018319,2]
[400320383,1767366647386,-823.0,0.00018339,2]
[400320384,1767366647395,-1153.0,0.00018456,2]
[400320385,1767366647405,-613.0,0.00018534,2]
[400320386,1767366647415,-1328.0,0.00018534,2]
[400320387,1767366647424,-1403.0,0.00018534,2]
[400320388,1767366647433,-3463.0,0.00018534,2]
[400320389,1767366647443,-1264.0,0.00018534,2]
[400320390,1767366647454,-433.0,0.00018534,2]
[400320391,1767366647463,-682.422326,0.00018534,2]
[400320392,1767366647473,-682.422326,0.00018534,2]
[400320393,1767366647482,-682.422326,0.00018534,2]
[400320394,1767366647492,-682.422326,0.00018534,2]
[400320395,1767366647501,-437.482557,0.00018534,2]
[400320396,1767366647511,-437.482557,0.00018534,2]
[400320397,1767366647520,-437.482557,0.00018534,2]
[400320398,1767366647531,-437.482557,0.00018534,2]
[400320399,1767366647542,-151.0,0.00018534,2]
[400320400,1767366647551,-151.0,0.00018534,2]
[400320401,1767366647560,-151.0,0.00018534,2]
[400320402,1767366647570,-347.295261,0.00018534,2]
[400320403,1767366647580,-347.295261,0.00018534,2]
[400320404,1767366647590,-347.295261,0.00018534,2]
[400320405,1767366647600,-347.295261,0.00018534,2]
[400320406,1767366647611,-272.996241,0.00018534,2]
[400320407,1767366647620,-272.996241,0.00018534,2]
[400320408,1767366647631,-272.996241,0.00018534,2]
[400320409,1767366647640,-272.996241,0.00018534,2]
[400320410,1767366647650,-1153.0,0.00018593,2]
[400320411,1767366647660,-2000.0,0.00018616,2]
[400320412,1767366647670,-1153.0,0.0001873,2]
[400320413,1767366647680,-1000.0,0.0001876,2]
[400320414,1767366647689,-399.0,0.00018813,2]